[Event "European Women-ch 2023"]
[Site "Petrovac"]
[Date "2023.03.21"]
[Round "4.1"]
[White "Maltsevskaya, Aleksandra"]
[Black "Bulmaga, Irina"]
[Result "0-1"]
[ECO "C26"]
[WhiteElo "2388"]
[BlackElo "2438"]
[Annotator "TA"]
[PlyCount "42"]
[EventDate "2023.03.15"]
[EventType "swiss"]
[EventCountry "MNE"]
[SourceTitle "playchess.com"]
[Source "ChessBase"]
[SourceQuality "1"]
[TimeControl "40/5400+30:1800+30"]

{[%evp 9,42,-1,1,-28,-19,-22,18,-14,-15,-18,0,-104,-84,-185,-189,-187,-178,-384,-362,-476,-462,-628,-474,-463,-433,-657,-602,-742,-673,-656,-575,-694,-686,-886,-868]} 1. e4 {[%emt 0:00:04]} e5 {[%emt 0:00:07]} 2. Nc3 {[%emt 0:00:06]} Nf6 {[%emt 0:00:07]} 3. d4 {[%emt 0:00:06]} exd4 {[%emt 0:00:21]} 4. Qxd4 {[%emt 0:00:06]} Nc6 {[%emt 0:00:21]} 5. Qd3 {[%emt 0:00:07]} Bc5 {[%emt 0:03:24]} 6. Bf4 {[%emt 0:00:08] C26: Vienna Game: 2...Nf6, sidelines .} d6 {[%emt 0:05:17]} 7. Qd2 {[%emt 0:05:28]} Bb4 {[%emt 0:07:56] Threatens to win with ...Nxe4.} 8. O-O-O {[%emt 0:03:29] The position is equal.} Be6 {[%emt 0:01:08] [#]} 9. Qd3 $146 {[%emt 0:09:39]} ({Predecessor:} 9. Qe3 Ng4 10. Qg3 Bxc3 11. bxc3 Qf6 12. h4 h6 13. Bb5 O-O 14. Ne2 Nge5 15. f3 Bxa2 {0-1 Mamedyarov,S (2765)-Ding,L (2799) Speed Chess Chess.com INT blitz 2021 (1.16)}) 9... O-O {[%emt 0:13:54]} 10. Nd5 {[%emt 0:01:27] [#]} (10. f3 $1 $11 {keeps the balance.}) 10... Bc5 $1 $17 {[%emt 0:05:26]} 11. f3 {[%emt 0:19:17]} (11. Be2 $17 {was necessary.}) 11... Nxd5 $19 {[%emt 0:08:41]} 12. exd5 {[%emt 0:00:07]} Nb4 $36 {[%emt 0:02:41][%csl LRa2,LRd3,LRd5][%mdl 2048] Black is really pushing.} 13. Qe4 {[%emt 0:01:02] [#]} (13. Qd2 {might work better.} Nxd5 14. Kb1) 13... Bxd5 $1 {[%emt 0:02:33]} (13... Nxa2+ $2 14. Kb1 $18) 14. Qf5 {[%emt 0:16:11]} Be6 {[%emt 0:03:50][%cal Bd5e6,Be6f5,Bf5g6][%mdl 32] Black is clearly winning.} (14... Nxa2+ $2 {loses.} 15. Kb1 Be6 16. Qh5 $19) (14... Bxa2 $2 {too greedy.} 15. c3 Nc6 16. Nh3 $19) 15. Qh5 {[%emt 0:00:06]} Nxa2+ {[%emt 0:01:58]} 16. Kb1 {[%emt 0:00:06]} Nb4 {[%emt 0:01:04] And now ...Qe8 would win.} 17. Nh3 {[%emt 0:02:19]} (17. Bd3 $142 Ba2+ 18. Ka1) 17... Qe8 {[%emt 0:08:21]} 18. Ng5 {[%emt 0:00:42][%csl Gg5][%cal Rh5h7]} Bf5 {[%emt 0:02:34]} 19. Bd3 {[%emt 0:01:36]} Nxd3 {[%emt 0:00:56]} 20. cxd3 {[%emt 0:00:06]} Bg6 {[%emt 0:02:33] Prevents Ne4.} 21. Qg4 {[%emt 0:00:25]} Qb5 {[%emt 0:00:49] Weighted Error Value: White=1.18/Black=0.29 (precise)} 0-1

[Event "European Women-ch 2023"]
[Site "Petrovac"]
[Date "2023.03.21"]
[Round "4.1"]
[White "Sliwicka, Alicja"]
[Black "Milliet, Sophie"]
[Result "1/2-1/2"]
[ECO "C77"]
[WhiteElo "2272"]
[BlackElo "2404"]
[Annotator "TA"]
[PlyCount "93"]
[EventDate "2023.03.15"]
[EventType "swiss"]
[EventCountry "MNE"]
[SourceTitle "playchess.com"]
[Source "ChessBase"]
[SourceQuality "1"]
[TimeControl "40/5400+30:1800+30"]

{[%evp 9,93,0,2,0,0,-25,0,0,0,0,0,-27,0,-38,-39,-15,-38,-1,-3,-13,14,-64,0,-47,0,0,0,-7,37,30,54,52,100,-3,-10,-14,0,0,0,0,0,0,0,-29,-11,-19,7,14,48,-10,52,56,50,17,58,61,63,46,66,41,35,36,37,35,44,29,68,67,79,83,76,56,51,35,35,35,33,27,32,27,33,0,17,0,0,0]} 1. e4 {[%emt 0:00:04]} e5 {[%emt 0:00:05]} 2. Nf3 {[%emt 0:00:04]} Nc6 {[%emt 0:00:03]} 3. Bb5 {[%emt 0:00:07]} a6 {[%emt 0:00:04]} 4. Ba4 {[%emt 0:00:04]} Nf6 {[%emt 0:00:07]} 5. Nc3 {[%emt 0:00:06]} Bc5 {[%emt 0:02:40]} 6. d3 {[%emt 0:00:20] C77: Ruy Lopez: 3...a6 4 Ba4 Nf6, unusual lines.} d6 {[%emt 0:02:29] The main line 6...d6 scores better than 6...b5.} 7. Nd5 {[%emt 0:00:34]} h6 {[%emt 0:01:18] Inhibits Bg5.} 8. c3 {[%emt 0:01:06]} O-O {[%emt 0:01:24]} 9. Nxf6+ {[%emt 0:23:22]} Qxf6 {[%emt 0:01:51] [#]} 10. h3 $146 {[%emt 0:03:31]} ({Predecessor:} 10. Be3 Ne7 11. Qd2 c6 12. d4 Ba7 13. O-O Ng6 14. Bc2 Qe7 15. Rae1 Bg4 16. Bd1 {1-0 Beerdsen,T (2441)-Di Bucchianico,A (2048) Eindhoven WLC op 9th 2018 (5)}) 10... Ne7 {[%emt 0:08:13]} 11. g4 {[%emt 0:03:24]} d5 {[%emt 0:13:19]} 12. g5 {[%emt 0:04:25]} hxg5 {[%emt 0:00:00]} 13. Bxg5 {[%emt 0:02:19]} Qd6 {[%emt 0:00:00]} 14. Rg1 {[%emt 0:14:13][%cal Bh1g1,Bg1g5,Bg5f5][%mdl 32]} Ng6 {[%emt 0:09:26]} (14... Bxh3 $2 15. Bxe7 Qxe7 16. Ng5 $18) (14... b5 $5 {[%cal Rb5a4]} 15. Bb3 f6 $11) 15. Qd2 {[%emt 0:07:53]} (15. h4 $11) 15... d4 {[%emt 0:08:22]} (15... Bxh3 $15 16. O-O-O Be6) 16. Nh4 {[%emt 0:07:18]} (16. h4 $11 {is more appropriate.}) 16... Nf4 {[%emt 0:06:47]} 17. Bxf4 {[%emt 0:00:07]} exf4 {[%emt 0:00:01]} 18. Rg5 {[%emt 0:00:48]} Qb6 {[%emt 0:09:10] And now ...Be7 would win.} 19. Nf5 {[%emt 0:03:24] Repels Be7} Bxf5 {[%emt 0:00:49]} 20. Rxf5 {[%emt 0:00:02]} Be7 {[%emt 0:09:43] [#]} (20... a5 $14) 21. Bb3 {[%emt 0:02:02]} (21. Ke2 $1 $16) 21... g6 $11 {[%emt 0:02:50]} 22. Rd5 {[%emt 0:00:52]} Rad8 {[%emt 0:02:31]} 23. Rxd8 {[%emt 0:00:51]} (23. cxd4 $2 {is the wrong capture.} Bb4 24. Rd1 Bxd2+ $19) 23... Bxd8 {[%emt 0:00:33]} 24. Qxf4 {[%emt 0:00:25]} dxc3 {[%emt 0:04:21]} 25. bxc3 {[%emt 0:00:21]} Qa5 {[%emt 0:00:01]} 26. Qd2 {[%emt 0:00:56]} Bg5 {[%emt 0:00:39][%mdl 1024] Black has compensation.} 27. Qc2 {[%emt 0:01:03] White is weak on the dark squares} Bf4 {[%emt 0:05:19]} 28. d4 {[%emt 0:05:20]} Qg5 {[%emt 0:02:37] [#] White must now prevent ...Qg1+.} 29. Qe2 {[%emt 0:06:18]} ({White should try} 29. Kf1 $14) 29... Re8 {[%emt 0:03:33]} (29... Qg2 $11 30. Kd1 Kg7) 30. Kf1 $1 $14 {[%emt 0:00:29]} Kg7 {[%emt 0:04:26]} 31. Qf3 {[%emt 0:00:50]} f6 {[%emt 0:00:26]} 32. Re1 {[%emt 0:01:04][%cal Ba1e1,Be1e2,Be2b2][%mdl 32]} c6 {[%emt 0:02:18]} 33. Re2 {[%emt 0:01:00]} Bh2 {[%emt 0:00:51][%csl Gh2][%cal Rg5g1]} 34. Qg4 {[%emt 0:01:06] Prevents Qg1+.} (34. Re3 {with more complications.} Re7 35. Qg2 Qxg2+ 36. Kxg2 Bd6 37. Kf3) 34... Qxg4 {[%emt 0:00:17]} 35. hxg4 {[%emt 0:00:01][%cal Og4g5][%mdl 4096] Endgame KRB-KRB} Bf4 {[%emt 0:00:15]} 36. Kg2 {[%emt 0:04:47]} Kh6 {[%emt 0:00:41]} 37. Kf3 {[%emt 0:04:51]} g5 {[%emt 0:00:19]} 38. Rb2 {[%emt 0:00:24]} Re7 {[%emt 0:00:11]} 39. a4 {[%emt 0:01:05]} Kg7 {[%emt 0:01:56]} 40. Ba2 {[%emt 0:00:00]} Kf8 {[%emt 0:00:00]} 41. Bb1 {[%emt 0:06:37]} Ke8 {[%emt 0:05:23]} 42. Bd3 {[%emt 0:02:26]} Kd8 {[%emt 0:02:44]} 43. Ke2 {[%emt 0:03:29]} Kc7 {[%emt 0:01:29]} 44. Rb1 {[%emt 0:00:55]} Rh7 {[%emt 0:05:18]} 45. Rd1 {[%emt 0:05:41]} (45. e5 $5 {[%cal Rd3h7]} Re7 46. Be4 $11) 45... Rh2 {[%emt 0:02:36]} 46. Rg1 {[%emt 0:01:53]} a5 {[%emt 0:00:26]} 47. Bc4 {[%emt 0:02:56] Weighted Error Value: White=0.19 (very precise) /Black=0.14 (very precise)} 1/2-1/2

[Event "European Women-ch 2023"]
[Site "Petrovac"]
[Date "2023.03.21"]
[Round "4.1"]
[White "Mamedjarova, Turkan"]
[Black "Vidic, Teja"]
[Result "1-0"]
[ECO "C55"]
[WhiteElo "2229"]
[BlackElo "2097"]
[Annotator "TA"]
[PlyCount "79"]
[EventDate "2023.03.15"]
[EventType "swiss"]
[EventCountry "MNE"]
[SourceTitle "playchess.com"]
[Source "ChessBase"]
[SourceQuality "1"]
[TimeControl "40/5400+30:1800+30"]

{[%evp 13,79,4,3,-17,-8,0,38,0,0,0,295,290,308,328,309,122,141,131,154,162,197,160,252,153,166,143,259,259,344,347,337,273,353,342,470,441,440,462,400,414,445,420,487,478,460,327,310,318,322,267,262,256,264,250,279,283,285,286,325,315,497,365,580,445,521,484,1151,1164]} 1. e4 {[%emt 0:00:09]} e5 {[%emt 0:00:07]} 2. Nf3 {[%emt 0:00:10]} Nc6 {[%emt 0:00:08]} 3. Bc4 {[%emt 0:00:13]} Nf6 {[%emt 0:00:30]} 4. Nc3 {[%emt 0:00:23]} Nxe4 {[%emt 0:01:30]} 5. Nxe4 {[%emt 0:02:35]} d5 {[%emt 0:00:07]} 6. Bd3 {[%emt 0:16:03]} dxe4 {[%emt 0:00:09]} 7. Bxe4 {[%emt 0:00:01]} Bd6 {[%emt 0:02:14]} 8. c3 {[%emt 0:07:43] C55: Two Knights: 4 d3, 4 d4 exd4 5 e5 and Max Lange Attack.} O-O {[%emt 0:01:52]} (8... f5 $5 {[%cal Rf5e4]} 9. Bxc6+ bxc6 $11) 9. O-O {[%emt 0:02:08]} Bg4 {[%emt 0:11:43]} 10. h3 {[%emt 0:16:02] White is slightly better.} Bh5 {[%emt 0:02:40] ...f5 is the strong threat.} 11. Qb3 {[%emt 0:00:28] [#]} Kh8 $146 {[%emt 0:08:11][%mdl 8192]} (11... Rb8 $11 {and Black has nothing to worry.}) ({Predecessor:} 11... Rb8 12. Qa4 Qe8 13. d3 a6 14. Re1 Ne7 {½-½ Hoppe,N (1652)-Blobel,T (1656) Muensterland Verbandsliga 1819 2018 (8.7)}) 12. Qxb7 $18 {[%emt 0:02:09]} Rb8 {[%emt 0:03:00]} 13. Qxc6 {[%emt 0:01:26]} f5 {[%emt 0:00:05] [#]} 14. Nxe5 $1 {[%emt 0:17:17]} Be8 {[%emt 0:20:29]} (14... Bxe5 15. d4) 15. Qc4 {[%emt 0:01:06] Black must now prevent Nc6.} Bxe5 {[%emt 0:01:23] [#]} 16. Bc6 {[%emt 0:02:00]} Bf7 {[%emt 0:01:20]} 17. Qc5 {[%emt 0:05:08]} Qf6 {[%emt 0:02:05]} (17... Rb6 $16) 18. b3 {[%emt 0:04:02]} (18. d4 Bd6 19. Qxa7 Rb6 $18) 18... Bd6 {[%emt 0:05:20]} 19. Qa5 {[%emt 0:00:34]} g5 {[%emt 0:12:20]} (19... Rb6 $16 {might work better.}) 20. d3 {[%emt 0:04:42][%cal Bd2d3,Bd3d4][%mdl 32]} (20. Qxa7 Rb6 $11) 20... Rb6 {[%emt 0:09:45] [#]} 21. Be3 $1 {[%emt 0:01:40][%mdl 64] Bd4 would be deadly. Skewer} Be5 {[%emt 0:02:58]} (21... Rxc6 $2 22. Bd4 $18 (22. Bxa7 $2 Rxc3 23. Rac1 Rxd3 $19) (22. Bxa7 $2 Rxc3 23. Rad1 Rd8 $19)) 22. d4 {[%emt 0:03:03]} ({Resist} 22. Bxb6 axb6 23. Qa3 Rg8 $18) 22... Bd6 {[%emt 0:02:58]} 23. d5 {[%emt 0:00:47]} g4 {[%emt 0:02:46]} 24. Bd4 {[%emt 0:01:50]} Be5 {[%emt 0:00:04]} 25. Bxe5 {[%emt 0:00:42]} (25. Qxa7 Bxd4 26. cxd4 Qd6 $18) 25... Qxe5 {[%emt 0:00:04]} 26. Qc5 {[%emt 0:00:37]} ({Weaker is} 26. Qxa7 gxh3 27. Rae1 Qg7 $11) 26... Rg8 {[%emt 0:01:43][%cal Ob6c6] aiming for ...Rxc6!} 27. Rfe1 {[%emt 0:02:24]} Qg7 {[%emt 0:04:02]} 28. hxg4 {[%emt 0:01:33]} Qxg4 {[%emt 0:00:24][%csl Gg8][%cal Rg4g2]} 29. Qd4+ {[%emt 0:01:09]} Qxd4 {[%emt 0:00:05]} 30. cxd4 {[%emt 0:00:01]} Bh5 {[%emt 0:00:52]} 31. Kf1 {[%emt 0:04:57]} Rb4 {[%emt 0:00:08]} 32. f3 {[%emt 0:00:22]} Rxd4 {[%emt 0:00:39]} 33. Rad1 {[%emt 0:00:25] Dodges Rd2} Rh4 {[%emt 0:01:32]} 34. Kf2 {[%emt 0:00:24]} Rh2 {[%emt 0:00:52]} 35. Rg1 {[%emt 0:00:03]} f4 {[%emt 0:02:05]} 36. Rd4 {[%emt 0:00:10]} Rf8 {[%emt 0:00:56]} (36... Be8 $142 37. Bxe8 Rxe8 38. Rxf4 Rd8) 37. Ra4 {[%emt 0:00:22]} Rg8 {[%emt 0:01:20]} (37... Be8 $142 38. Bxe8 Rxe8 39. Rxf4 Rd8) 38. Rxf4 {[%emt 0:00:16] White is clearly winning.} a5 {[%emt 0:00:18]} 39. Ra4 {[%emt 0:00:32]} Rf8 {[%emt 0:00:08]} (39... Be8 $142 40. Bxe8 Rxe8 41. Rxa5 Rh4) 40. Kg3 {[%emt 0:00:00] Weighted Error Value: White=0.33/Black=0.59} ({Not} 40. Rxa5 Rxf3+ 41. Ke1 Rd3 $18) 1-0

[Event "European Women-ch 2023"]
[Site "Petrovac"]
[Date "2023.03.21"]
[Round "4.2"]
[White "Zawadzka, Jolanta"]
[Black "Radeva, Viktoria"]
[Result "0-1"]
[ECO "B28"]
[WhiteElo "2391"]
[BlackElo "2247"]
[Annotator "TA"]
[PlyCount "98"]
[EventDate "2023.03.15"]
[EventType "swiss"]
[EventCountry "MNE"]
[SourceTitle "playchess.com"]
[Source "ChessBase"]
[SourceQuality "1"]
[TimeControl "40/5400+30:1800+30"]

{[%evp 10,98,46,38,46,40,39,37,39,35,41,41,34,39,37,37,39,34,30,36,35,34,35,33,25,4,9,22,20,15,47,6,25,28,33,28,43,29,35,11,20,33,74,75,72,70,125,65,163,165,172,160,185,184,174,130,147,63,200,187,189,70,100,89,70,23,40,-242,-229,-364,-361,-364,-300,-246,0,-358,-360,-1588,-1408,-29987,-29988,-29993,-29994,-29994,-29995,-29995,-29996,-29996,-29996,-29996,-29997]} 1. e4 {[%emt 0:02:44]} c5 {[%emt 0:00:04]} 2. Nf3 {[%emt 0:00:04]} a6 {[%emt 0:00:05]} 3. c4 {[%emt 0:00:06]} Nc6 {[%emt 0:00:04]} 4. d4 {[%emt 0:00:08]} cxd4 {[%emt 0:00:04]} 5. Nxd4 {[%emt 0:00:05]} e5 {[%emt 0:00:05]} 6. Nf5 {[%emt 0:00:15]} d6 {[%emt 0:00:08] B28: Sicilian: 2 Nf3 a6 (O'Kelly Variation).} 7. Ne3 {[%emt 0:01:07]} g6 $1 {[%emt 0:00:11][%mdl 4] now scores much better than the old 7...Nf6.} 8. Nc3 {[%emt 0:01:43]} Be6 {[%emt 0:00:05] White is slightly better.} 9. Bd3 {[%emt 0:03:04]} Bh6 {[%emt 0:03:50]} 10. O-O {[%emt 0:02:06]} Nf6 {[%emt 0:00:07][%cal Bg8f6,Bf6h5,Bh5f4,Bf4d3][%mdl 32]} 11. Nc2 {[%emt 0:05:11]} Bxc1 {[%emt 0:00:08] [#]} 12. Rxc1 $146 {[%emt 0:00:07]} ({Predecessor:} 12. Qxc1 O-O 13. Qd2 Rc8 14. b3 Qa5 15. Rfd1 Kg7 16. a4 Qc5 17. h3 Rfd8 18. Ne2 {0-1 Anita,J (2166)-Chatterjee,A (2229) Afroasian-chT3 email 2020 [3]}) 12... Nh5 {[%emt 0:00:10]} 13. Qd2 {[%emt 0:14:02]} Nf4 {[%emt 0:00:34]} 14. Kh1 {[%emt 0:02:22]} h5 {[%emt 0:03:10][%cal Bh7h5,Bh5h4,Bh4h3][%mdl 32]} 15. Rfd1 {[%emt 0:03:01]} h4 {[%emt 0:09:50]} 16. Qe3 {[%emt 0:06:06]} (16. Nd5 {simplifies} Nxd3 17. Qxd3 Rc8 18. h3) 16... Qg5 {[%emt 0:07:01][%csl Gf4][%cal Rg5g2]} 17. Rg1 {[%emt 0:03:13]} h3 {[%emt 0:08:47][%cal Rh3g2]} 18. g3 {[%emt 0:03:38]} Nxd3 {[%emt 0:01:00]} 19. Qxd3 {[%emt 0:00:06]} Qh5 {[%emt 0:03:02][%cal Oe6c4]} 20. b3 {[%emt 0:02:56]} (20. Qxd6 $2 Qf3+) (20. Nd5 $5 {[%cal Rd5f6]} O-O-O 21. f3 $11) 20... Bg4 {[%emt 0:06:06] ( -> ...Bf3+)} 21. Rge1 {[%emt 0:02:33][%cal Oc3d5]} O-O {[%emt 0:09:23]} 22. Re3 $1 {[%emt 0:17:17]} Rad8 {[%emt 0:04:12]} 23. f3 {[%emt 0:00:20]} Be6 {[%emt 0:00:23]} 24. g4 {[%emt 0:01:21][%cal Bg3g4,Bg4g5][%mdl 32]} Qh4 {[%emt 0:08:57]} 25. Rg1 {[%emt 0:03:12]} Kg7 {[%emt 0:07:55]} 26. Rg3 {[%emt 0:02:32]} Rh8 {[%emt 0:01:33]} 27. Re1 {[%emt 0:01:30]} Kf8 {[%emt 0:07:01]} (27... Qe7 $14) 28. Rd1 {[%emt 0:00:48]} ({Better is} 28. g5 $1 $16) 28... Qh7 {[%emt 0:02:51]} (28... Qg5 $14) 29. g5 $18 {[%emt 0:08:56]} Qh4 {[%emt 0:04:59]} 30. Qe3 {[%emt 0:01:05]} Qf4 {[%emt 0:04:00]} 31. Qb6 {[%emt 0:01:23] aiming for Ne2.} Rd7 {[%emt 0:02:49]} 32. Ne2 {[%emt 0:00:58]} Qh4 {[%emt 0:00:09]} 33. Nb4 {[%emt 0:02:41]} (33. Ne3 $1 $16) 33... Ne7 {[%emt 0:02:11]} (33... Nxb4 $14 34. Qxb4 Kg7) 34. Qe3 {[%emt 0:03:46]} (34. Rxd6 $2 Nc8 35. Qe3 Rxd6 $19) 34... Kg7 {[%emt 0:01:26] [#]} 35. Rf1 {[%emt 0:03:36]} ({White should play} 35. Nd5 $1 $18) 35... b5 $1 $14 {[%emt 0:02:14]} 36. cxb5 {[%emt 0:00:26]} axb5 {[%emt 0:00:01]} 37. f4 {[%emt 0:00:24]} (37. Nc3 $1 $14) 37... Rc8 $11 {[%emt 0:01:42]} 38. Qd3 $2 {[%emt 0:01:45][%mdl 8192] [#]} (38. Nd3 $14 {keeps the upper hand.}) 38... d5 $1 $19 {[%emt 0:00:37]} 39. Qxb5 {[%emt 0:00:23]} (39. fxe5 $2 dxe4 40. Qxb5 Nf5 $19) (39. Qe3 $142 Kg8 40. exd5 Nxd5 41. Nxd5 Bxd5+ 42. Kg1) 39... Kg8 {[%emt 0:01:46]} 40. Rd3 {[%emt 0:00:00]} (40. fxe5 Qxe4+ 41. Rgf3 Rb7 $19) 40... Qg4 {[%emt 0:00:00][%csl Gh3][%cal Rg4g2]} 41. Rg3 {[%emt 0:02:18] Dodges Qg2+} Qh4 {[%emt 0:04:28]} (41... Qh5 $19 42. Re3 dxe4) 42. exd5 $2 {[%emt 0:06:39][%mdl 8192]} (42. fxe5 $2 Qxe4+ 43. Rgf3 Rb7 $19) (42. Rd3 $1 $11) 42... Nxd5 {[%emt 0:02:20]} 43. Nxd5 {[%emt 0:02:48]} (43. Nd3 exf4 44. Ndxf4 Nxf4 45. Nxf4) 43... Rxd5 {[%emt 0:01:00]} 44. Qa4 {[%emt 0:14:11]} Rd2 {[%emt 0:05:53] Black mates.} 45. Re1 {[%emt 0:06:05] [#]} Rxe2 $1 {[%emt 0:03:51][%mdl 576] Remove Defender, Deflection} 46. Rxe2 {[%emt 0:00:05]} (46. Rd1 Bd5+) 46... Rc1+ {[%emt 0:00:05]} ({Stronger than} 46... Qxf4 47. Qxf4 exf4 48. Rxe6 $11) 47. Rg1 {[%emt 0:00:03]} Bd5+ {[%emt 0:00:05]} (47... Qxf4 $2 48. Qxf4 Bd5+ 49. Qe4 Bxe4+ 50. Rxe4 $18) 48. Re4 {[%emt 0:00:05]} Qxf4 {[%emt 0:00:33][%cal Rf4f3][%mdl 64] Pin, Double Attack} ({Weaker is} 48... Bxe4+ 49. Qxe4 Rc8 50. Qf3 $17 (50. Qxe5 {is a self mate.} Qf2 51. Qe4 Rc2 52. Qe8+ Kg7 53. Qe5+ Kh7)) 49. Qe8+ {[%emt 0:01:07]} Kg7 {[%emt 0:00:08] A cool game by Radeva.   Weighted Error Value: White=0.55/Black=0.19 (very precise)} 0-1

[Event "European Women-ch 2023"]
[Site "Petrovac"]
[Date "2023.03.21"]
[Round "4.2"]
[White "Beydullayeva, Govhar"]
[Black "Kiolbasa, Oliwia"]
[Result "1/2-1/2"]
[ECO "D37"]
[WhiteElo "2388"]
[BlackElo "2406"]
[Annotator "TA"]
[PlyCount "75"]
[EventDate "2023.03.15"]
[EventType "swiss"]
[EventCountry "MNE"]
[SourceTitle "playchess.com"]
[Source "ChessBase"]
[SourceQuality "1"]
[TimeControl "40/5400+30:1800+30"]

{[%evp 12,75,18,18,14,13,18,14,15,14,13,13,13,10,10,14,0,0,9,15,18,-14,6,6,6,7,5,0,6,12,20,22,29,1,7,10,9,0,0,0,38,9,49,25,8,0,0,-6,0,-12,-20,-20,0,0,0,0,16,10,13,10,22,20,61,61,49,35]} 1. d4 {[%emt 0:00:02]} d5 {[%emt 0:00:14]} 2. c4 {[%emt 0:00:04]} e6 {[%emt 0:00:12]} 3. Nf3 {[%emt 0:00:15]} Nf6 {[%emt 0:00:16]} 4. Nc3 {[%emt 0:00:04]} Be7 {[%emt 0:00:37]} 5. Bf4 {[%emt 0:00:41]} O-O {[%emt 0:00:37]} 6. e3 {[%emt 0:00:59]} b6 {[%emt 0:00:28]} 7. Bd3 {[%emt 0:02:14]} Ba6 {[%emt 0:00:47] D37: Queen's Gambit Declined: 5 Bf4.} 8. cxd5 {[%emt 0:00:50]} Nxd5 {[%emt 0:03:13]} 9. Nxd5 {[%emt 0:00:43]} Qxd5 {[%emt 0:00:28] The position is equal.} 10. O-O {[%emt 0:08:23]} Bxd3 {[%emt 0:00:47]} 11. Qxd3 {[%emt 0:00:07]} c5 {[%emt 0:01:00]} 12. e4 {[%emt 0:07:45]} Qb7 {[%emt 0:00:53]} 13. d5 {[%emt 0:01:26]} exd5 {[%emt 0:00:34]} 14. exd5 {[%emt 0:00:03]} Nd7 {[%emt 0:00:43]} 15. Rfe1 {[%emt 0:03:53]} Rfe8 {[%emt 0:00:52]} 16. Re2 {[%emt 0:10:00] [#]} Bf6 $146 {[%emt 0:05:55]} ({Predecessor:} 16... Bf8 17. Rae1 Rxe2 18. Rxe2 Nf6 19. d6 Qd5 20. Qxd5 {½-½ Babula,V (2556)-Malinovsky,K (2483) CZE-chT1E 1718 2017 (7.3)}) 17. Rae1 {[%emt 0:03:00]} Rxe2 {[%emt 0:02:43]} 18. Rxe2 {[%emt 0:00:01]} h6 {[%emt 0:00:34]} 19. h4 {[%emt 0:11:00]} Rd8 {[%emt 0:06:31]} 20. d6 {[%emt 0:07:44]} Nf8 {[%emt 0:17:00]} 21. Bg3 {[%emt 0:03:41]} b5 {[%emt 0:04:44]} 22. b3 {[%emt 0:01:45]} Qc6 {[%emt 0:01:04]} 23. Nd2 {[%emt 0:03:02]} Ne6 {[%emt 0:03:48][%cal Of6h4]} 24. Ne4 {[%emt 0:05:05]} Bd4 {[%emt 0:00:26]} 25. Qf3 {[%emt 0:01:43][%cal Oe4f6] [#] Nf6+! would be deadly.} Qd7 {[%emt 0:03:54]} 26. Rc2 {[%emt 0:05:51]} Rc8 {[%emt 0:03:52]} 27. Qf5 {[%emt 0:00:20]} Qb7 {[%emt 0:13:27]} 28. h5 {[%emt 0:03:36]} c4 {[%emt 0:02:39] With the idea ...c3.} 29. Qf3 {[%emt 0:02:50][%cal Oe4f6] [#] Threatens to win with Nf6+!} Kh8 {[%emt 0:05:27]} 30. d7 {[%emt 0:04:25]} Qxd7 {[%emt 0:02:26] White must now prevent ...Ng5.} 31. Nd6 {[%emt 0:00:05]} Rf8 {[%emt 0:06:19][%cal Of7f5] ...f5! is the strong threat.} (31... Ng5 $5 {[%cal Rg5f3]} 32. Qe2 Rc6 33. Nxb5 Bb6 $11) 32. bxc4 {[%emt 0:00:59]} bxc4 {[%emt 0:00:03]} 33. Rxc4 {[%emt 0:00:57]} Bc5 {[%emt 0:01:07] Black is weak on the light squares} 34. Qb7 {[%emt 0:04:07]} Qxb7 {[%emt 0:02:43]} 35. Nxb7 {[%emt 0:00:01]} Bd4 {[%emt 0:00:25]} 36. Kf1 {[%emt 0:03:06]} f5 {[%emt 0:01:54]} 37. Bd6 {[%emt 0:01:21]} Re8 {[%emt 0:04:17]} 38. Bb4 {[%emt 0:00:46] Weighted Error Value: White=0.07 (flawless) /Black=0.08 (flawless)} 1/2-1/2